bitfinex-derivatives/quotes_ETHF0:USTF0_20250420
["timestamp","ask_amount","ask_price","bid_price","bid_amount"]
[1745169506920,2.94125638,1578.3,1578.2,9.29974]
[1745169507219,2.94125638,1578.3,1578.2,8.0325]
[1745169509522,2.94125638,1578.3,1578.2,8.9158]
[1745169511616,2.94125638,1578.3,1578.2,6.261]
[1745169512127,2.94125638,1578.3,1578.2,2.228]
[1745169517627,1.27665638,1578.3,1578.2,2.228]
[1745169517823,1.27665638,1578.3,1578.2,3.1095]
[1745169520617,1.27665638,1578.3,1578.2,4.7843]
[1745169521826,8.42054945,1578.3,1578.2,4.7843]
[1745169522022,11.62834945,1578.3,1578.2,4.7843]
[1745169524726,10.36118945,1578.3,1578.2,6.05154]
[1745169525024,11.62834945,1578.3,1578.2,6.05154]
[1745169526829,8.42054945,1578.3,1578.2,6.05154]
[1745169527326,8.42054945,1578.3,1578.2,4.7843]
[1745169529117,2.08464775,1578.3,1578.2,4.7843]
[1745169531037,2.08464775,1578.3,1578.2,8.8173]
[1745169533535,12.65491124,1578.3,1578.2,8.8173]
[1745169540242,14.40471124,1578.3,1578.2,8.8173]
[1745169542054,10.17034945,1578.3,1578.2,8.8173]
[1745169545354,10.17034945,1578.3,1578.2,4.7843]
[1745169546258,1.26745,1578.0,1577.8,27.06112821]
[1745169546450,1.26745,1578.0,1577.8,27.36354821]
[1745169546755,1.26745,1578.0,1577.9,1.777]
[1745169547255,3.80015,1578.0,1577.9,4.005]
[1745169550057,8.03475427,1578.0,1577.9,4.005]
[1745169554154,3.80015,1578.0,1577.9,4.005]
[1745169554463,1.26745,1578.0,1577.9,5.27248]
[1745169554655,10.57050597,1578.1,1578.0,1.2674]
[1745169554862,11.83785597,1578.1,1578.0,3.732]
[1745169555062,10.57050597,1578.1,1578.0,6.9398]
[1745169555256,10.57050597,1578.1,1578.0,9.1678]
[1745169558260,2.12156,1578.2,1578.1,1.26732]
[1745169558461,2.12156,1578.2,1578.1,7.07522]
[1745169560252,2.12156,1578.2,1578.1,5.8079]
[1745169560965,4.75386,1578.2,1578.1,5.8079]
[1745169562665,4.75386,1578.2,1578.1,7.07522]
[1745169567767,2.12156,1578.2,1578.1,7.07522]
[1745169568372,0.8543,1578.2,1578.1,7.07522]
[1745169568569,4.24410065,1578.3,1578.2,1.26724]
[1745169568774,4.24410065,1578.3,1578.2,6.98614]
[1745169569264,4.24410065,1578.3,1578.2,9.21414]
[1745169569469,5.51126065,1578.3,1578.2,9.21414]
[1745169570572,1.27665638,1578.3,1578.2,9.21414]
[1745169574977,2.90775638,1578.3,1578.2,9.21414]
[1745169578167,2.90775638,1578.3,1578.2,7.9469]
[1745169578374,2.90775638,1578.3,1578.2,5.4358]
[1745169579874,2.90775638,1578.3,1578.2,6.70304]
[1745169580173,2.90775638,1578.3,1578.2,5.4358]
[1745169582382,2.90775638,1578.3,1578.2,6.70304]
[1745169582583,2.90775638,1578.3,1578.2,5.4358]
[1745169582880,2.90775638,1578.3,1578.2,6.70304]
[1745169584983,2.90775638,1578.3,1578.2,8.40334]
[1745169588587,1.64059638,1578.3,1578.2,8.40334]
[1745169588782,1.64059638,1578.3,1578.2,9.22664]
[1745169589390,0.00949638,1578.3,1578.2,9.22664]
[1745169589592,0.00949638,1578.3,1578.2,10.04714]
[1745169594984,1.27665638,1578.3,1578.2,10.04714]
[1745169596490,1.27665638,1578.3,1578.2,9.22664]
[1745169596890,0.00949638,1578.3,1578.2,9.22664]
[1745169600893,4.23460427,1578.4,1578.3,1.26716]
[1745169601092,4.23460427,1578.4,1578.3,3.89806]
[1745169601297,4.23460427,1578.4,1578.3,8.89806]
[1745169603602,4.23460427,1578.5,1578.4,1.26708]
[1745169603800,4.23460427,1578.5,1578.4,11.04748]
[1745169604299,4.23460427,1578.5,1578.4,13.27548]
[1745169606998,4.23460427,1578.5,1578.4,10.06768]
[1745169607499,4.23460427,1578.5,1578.4,13.27548]
[1745169608203,1.701,1578.6,1578.5,1.267]
[1745169608400,1.701,1578.6,1578.5,2.944]
[1745169608698,1.6491,1578.7,1578.6,1.26692]
[1745169608897,3.3809,1578.7,1578.6,3.78262]
[1745169610504,2.5433,1578.7,1578.6,3.78262]
[1745169610699,5.09960427,1578.8,1578.7,1.26683]
[1745169611004,4.23460427,1578.8,1578.7,6.93143]
[1745169611189,7.63120427,1578.9,1578.8,1.26675]
[1745169611393,7.63120427,1578.9,1578.8,2.90135]
[1745169611705,8.89787427,1578.9,1578.8,2.90135]
[1745169614610,4.66327,1578.9,1578.8,2.90135]
[1745169616610,1.26675,1578.8,1578.7,6.258]
[1745169616912,2.99935,1578.8,1578.7,6.258]
[1745169620217,2.99935,1578.8,1578.7,7.52483]
[1745169620912,1.7326,1578.8,1578.7,7.52483]
[1745169621411,2.99935,1578.8,1578.7,7.52483]
[1745169622311,6.20715,1578.8,1578.7,6.258]
[1745169624709,2.99935,1578.8,1578.7,6.258]
[1745169631015,2.99935,1578.8,1578.7,7.52483]
[1745169632921,2.99935,1578.8,1578.7,8.41443]
[1745169633422,2.99935,1578.8,1578.7,7.1476]
[1745169633722,2.99935,1578.8,1578.7,8.41443]
[1745169634222,2.99935,1578.8,1578.7,6.258]
[1745169636627,2.99935,1578.8,1578.7,7.52483]
[1745169637135,1.26675,1578.8,1578.7,7.9814]
[1745169637331,7.17343427,1578.9,1578.8,1.26675]
[1745169637527,1.26675,1578.8,1578.7,7.52478]
[1745169637729,7.63230427,1578.9,1578.7,7.52478]
[1745169637929,1.26675,1578.8,1578.7,7.52478]
[1745169638228,5.04170427,1578.9,1578.8,1.26675]
[1745169638428,4.23460427,1578.9,1578.8,1.26675]
[1745169638632,4.23460427,1578.9,1578.8,2.13315]
[1745169640043,13.77830597,1579.0,1578.9,1.26667]
[1745169640241,10.57050597,1579.0,1578.9,1.26667]
[1745169640737,10.57050597,1579.0,1578.9,4.47447]
[1745169641238,10.57050597,1579.0,1578.9,6.70247]
[1745169644846,2.08573,1579.1,1579.0,1.26659]
[1745169645049,2.07646972,1579.1,1579.0,5.29559]
[1745169645238,2.07646972,1579.1,1579.0,7.52359]
[1745169646843,2.07646972,1579.1,1579.0,6.257]
[1745169647043,3.70866972,1579.1,1579.0,6.257]
[1745169647234,4.56716972,1579.1,1579.0,7.52359]
[1745169647435,4.56716972,1579.1,1579.0,6.257]
[1745169647936,7.77496972,1579.1,1579.0,6.257]
[1745169648339,7.77496972,1579.1,1579.0,2.228]
[1745169652139,12.00957399,1579.1,1579.0,2.228]
[1745169662651,8.80177399,1579.1,1579.0,2.228]
[1745169662951,12.00957399,1579.1,1579.0,2.228]
[1745169674653,12.00957399,1579.1,1578.7,0.8385]
[1745169674654,1.26675,1578.8,1578.7,6.6157]
[1745169674851,1.26675,1578.8,1578.7,6.60643972]
[1745169675261,2.09015,1578.8,1578.7,8.83443972]
[1745169675560,3.84615,1578.8,1578.7,8.83443972]
[1745169676560,2.09015,1578.8,1578.7,8.83443972]
[1745169679054,6.32475427,1578.8,1578.7,8.83443972]
[1745169679554,5.50135427,1578.8,1578.7,8.83443972]
[1745169683767,1.26675,1578.8,1578.7,8.83443972]
[1745169694266,1.26675,1578.8,1578.7,10.10126972]
[1745169694467,5.50129427,1578.9,1578.8,1.26675]
[1745169694772,5.50129427,1578.9,1578.8,1.7173]
[1745169699874,7.17819427,1578.9,1578.8,1.7173]
[1745169700375,1.26675,1578.8,1578.7,7.08523972]
[1745169700575,3.76115,1578.8,1578.7,6.256]
[1745169705681,4.64145,1578.8,1578.7,6.256]
[1745169706777,8.87605427,1578.8,1578.7,6.256]
[1745169718398,9.68375207,1578.8,1578.7,6.256]
[1745169720303,9.68375207,1578.8,1578.7,7.9455]
[1745169721999,7.18935207,1578.8,1578.7,9.21233]
[1745169722703,7.18935207,1578.8,1578.7,7.9455]
[1745169723304,6.30905207,1578.8,1578.7,7.9455]
[1745169723504,12.64495377,1578.8,1578.7,7.9455]
[1745169725103,12.64495377,1578.8,1578.7,9.21233]
[1745169726998,12.64495377,1578.8,1578.7,7.9455]
[1745169728096,5.50135427,1578.8,1578.7,7.9455]
[1745169733003,6.38765427,1578.8,1578.7,7.9455]
[1745169733707,8.91335427,1578.8,1578.7,7.9455]
[1745169734204,8.91335427,1578.8,1578.7,6.256]
[1745169736609,16.05694978,1578.8,1578.7,6.256]
[1745169737011,16.05694978,1578.8,1578.7,2.228]
[1745169737301,1.26683,1578.7,1578.6,0.00949638]
[1745169737610,1.267,1578.5,1578.4,8.47678211]
[1745169737809,4.4748,1578.5,1578.4,8.47678211]
[1745169738310,5.3376,1578.5,1578.4,10.70478211]
[1745169738511,7.0613,1578.5,1578.4,10.70478211]
[1745169740806,7.0613,1578.5,1578.4,13.22178211]
[1745169743208,14.20489551,1578.5,1578.4,4.745]
[1745169746317,10.99709551,1578.5,1578.4,4.745]
[1745169746617,3.8535,1578.5,1578.4,4.745]
[1745169749628,2.1298,1578.5,1578.4,4.745]
[1745169749921,1.267,1578.5,1578.4,4.745]
[1745169751224,1.267,1578.5,1578.4,6.01206]
[1745169751611,1.267,1578.5,1578.4,4.745]
[1745169752216,1.267,1578.5,1578.4,6.01208]
[1745169758219,1.267,1578.5,1578.4,4.745]
[1745169758628,2.9089,1578.5,1578.4,4.745]
[1745169759423,2.9089,1578.5,1578.4,3.9041]
[1745169759924,2.9089,1578.5,1578.4,4.7152]
[1745169760129,2.9089,1578.5,1578.4,2.228]
[1745169764335,2.9089,1578.5,1578.4,4.7141]
[1745169765232,2.1029,1578.5,1578.4,4.7141]
[1745169768634,3.7264,1578.5,1578.4,4.7141]
[1745169775041,2.1029,1578.5,1578.4,4.7141]
[1745169775235,2.1029,1578.5,1578.4,5.98118]
[1745169775441,11.15978192,1578.6,1578.5,1.267]
[1745169775644,11.15978192,1578.6,1578.5,1.7526]
[1745169775842,11.15978192,1578.6,1578.5,3.0196]
[1745169776143,11.15978192,1578.6,1578.5,5.2476]
[1745169776443,11.15978192,1578.6,1578.5,3.9806]
[1745169776945,7.95198192,1578.6,1578.5,3.9806]
[1745169780741,3.73317,1578.6,1578.5,3.9806]
[1745169785255,7.95198192,1578.6,1578.5,3.9806]
[1745169788353,8.75978746,1578.6,1578.5,3.9806]
[1745169790056,7.95408746,1578.6,1578.5,3.9806]
[1745169790456,6.68711746,1578.6,1578.5,3.9806]
[1745169790659,7.95403746,1578.6,1578.5,3.9806]
[1745169791257,7.95403746,1578.6,1578.5,5.2476]
[1745169792459,7.95403746,1578.6,1578.5,3.9806]
[1745169793861,7.95403746,1578.6,1578.5,5.2476]
[1745169794059,7.95403746,1578.6,1578.5,3.9806]
[1745169795458,7.95403746,1578.6,1578.5,5.2476]
[1745169796149,7.95403746,1578.6,1578.5,3.9806]
[1745169799466,7.95403746,1578.6,1578.5,2.228]
[1745169805262,11.16183746,1578.6,1578.5,2.228]
[1745169805765,13.27892724,1578.6,1578.5,2.228]
[1745169809569,15.38096604,1578.6,1578.5,2.228]
[1745169810168,15.8937757,1578.6,1578.5,2.228]
[1745169811263,15.38096604,1578.6,1578.5,2.228]
[1745169819571,12.17316604,1578.6,1578.5,2.228]
[1745169819775,15.38096604,1578.6,1578.5,2.228]
[1745169826572,12.17316604,1578.6,1578.5,2.228]
[1745169826781,15.38096604,1578.6,1578.5,2.228]
[1745169832981,15.38096604,1578.6,1578.5,3.9858]
[1745169835293,23.62865799,1578.6,1578.5,3.9858]
[1745169843595,23.62865799,1578.6,1578.5,2.228]
[1745169844508,1.267,1578.5,1578.4,0.00949638]
[1745169844703,6.6372,1578.5,1578.4,0.00949638]
[1745169845106,6.6372,1578.5,1578.4,2.23749638]
[1745169851810,17.86252125,1578.5,1578.4,2.23749638]
[1745169855916,26.1102132,1578.5,1578.4,2.23749638]
[1745169858808,29.3180132,1578.5,1578.4,2.23749638]
[1745169867627,26.1102132,1578.5,1578.4,2.23749638]
[1745169867824,29.3180132,1578.5,1578.4,2.23749638]
[1745169868926,26.1102132,1578.5,1578.4,2.23749638]
[1745169869133,29.3180132,1578.5,1578.4,2.23749638]
[1745169869326,33.3430132,1578.5,1578.4,2.23749638]
[1745169871431,29.3180132,1578.5,1578.4,2.23749638]
[1745169871623,29.3180132,1578.5,1578.4,3.94289638]
[1745169875834,26.1102132,1578.5,1578.4,3.94289638]
[1745169876025,29.3180132,1578.5,1578.4,3.94289638]
[1745169878336,29.3180132,1578.5,1578.4,2.23749638]
[1745169879831,29.3180132,1578.5,1578.4,3.87749638]
[1745169886640,26.1102132,1578.5,1578.4,3.87749638]
[1745169886834,29.3180132,1578.5,1578.4,3.87749638]
[1745169890340,35.3020132,1578.5,1578.4,0.74115638]
[1745169890543,35.3020132,1578.5,1577.9,2.5504]
[1745169890544,1.2674,1578.0,1577.9,2.5504]
[1745169890844,6.4752,1578.0,1577.9,2.5504]
[1745169891041,5.2078,1578.0,1577.9,2.5504]
[1745169891238,4.4752,1578.0,1577.9,4.7784]
[1745169891438,4.4752,1578.0,1577.9,9.7784]
[1745169892642,15.70052125,1578.0,1577.9,9.7784]
[1745169893051,11.22532125,1578.0,1577.9,11.04588]
[1745169894742,12.49272125,1578.0,1577.9,11.04588]
[1745169895949,1.2674,1578.0,1577.9,11.04588]
[1745169896647,1.26737,1578.1,1577.9,11.04588]
[1745169896844,1.26737,1578.1,1578.0,1.7102]
[1745169897050,1.26737,1578.1,1578.0,6.7102]
[1745169897239,1.26737,1578.1,1578.0,3.9382]
[1745169897543,1.26737,1578.1,1578.0,8.9382]
[1745169898847,1.26737,1578.1,1578.0,12.9622]
[1745169899147,1.26737,1578.1,1578.0,7.9622]
[1745169899851,5.49386776,1578.1,1578.0,7.9622]
[1745169900653,7.49386776,1578.1,1578.0,3.9382]
[1745169900842,9.15836776,1578.1,1578.0,3.9382]
[1745169901348,9.15836776,1578.1,1578.0,1.7102]
[1745169902451,1.2674,1578.0,1577.9,3.0316]
[1745169902654,7.0096,1578.0,1577.9,3.0316]
[1745169902950,7.0096,1578.0,1577.9,2.228]
[1745169903352,1.26748,1577.9,1577.8,2.5708]
[1745169903551,2.07448,1577.9,1577.8,2.5708]
[1745169906254,7.10485415,1577.9,1577.8,2.5708]
[1745169908856,6.29785415,1577.9,1577.8,2.5708]
[1745169909652,5.48971993,1577.9,1577.8,2.5708]
[1745169916555,7.20401993,1577.9,1577.8,2.5708]
[1745169917061,1.26756,1577.8,1577.7,6.252]
[1745169917261,7.89916,1577.8,1577.7,6.252]
[1745169917450,7.89916,1577.8,1577.7,2.228]
[1745169923865,4.69136,1577.8,1577.7,2.228]
[1745169924161,7.89916,1577.8,1577.7,2.228]
[1745169925166,12.89916,1577.8,1577.7,2.228]
[1745169925665,7.89916,1577.8,1577.7,2.228]
[1745169926563,7.89916,1577.8,1577.2,5.884]
[1745169926564,1.26796,1577.3,1577.2,5.884]
[1745169926763,3.2078,1577.4,1577.1,11.90568211]
[1745169926963,4.47574,1577.4,1577.2,1.7304]
[1745169927164,1.26796,1577.3,1577.2,3.9584]
[1745169934973,1.26796,1577.3,1577.2,5.22644]
[1745169936074,8.69797993,1577.4,1577.2,5.22644]
[1745169936277,4.47574,1577.4,1577.3,3.77926]
[1745169936574,3.2078,1577.4,1577.3,3.77926]
[1745169936874,1.26788,1577.4,1577.3,3.77926]
[1745169937374,1.26788,1577.4,1577.3,2.5113]
[1745169938970,3.02944638,1577.5,1577.3,3.77923]
[1745169939174,3.02945638,1577.5,1577.4,2.4425]
[1745169939376,3.02939638,1577.5,1577.4,2.4425]
[1745169940073,3.02939638,1577.5,1577.4,4.6705]
[1745169944883,6.23719638,1577.5,1577.4,4.6705]
[1745169947880,3.02939638,1577.5,1577.4,4.6705]
[1745169948382,6.23719638,1577.5,1577.4,4.6705]
[1745169951283,7.05719638,1577.5,1577.4,4.6705]
[1745169951485,7.05719638,1577.5,1577.4,2.228]
[1745169952283,7.05719638,1577.5,1577.4,3.8428]
[1745169953687,6.23719638,1577.5,1577.4,3.8428]
[1745169953885,7.12709638,1577.5,1577.4,3.8428]
[1745169958579,7.12709638,1577.5,1577.4,4.6973]
[1745169963783,14.268904,1577.5,1577.4,4.6973]
[1745169967484,12.15351587,1577.5,1577.4,4.6973]
[1745169968097,9.51151587,1577.5,1577.4,4.6973]
[1745169971097,15.84487577,1577.5,1577.4,4.6973]
[1745169972099,12.63707577,1577.5,1577.4,4.6973]
[1745169974400,8.419104,1577.5,1577.4,4.6973]
[1745169977100,8.419104,1577.5,1577.4,5.96518]
[1745169977302,7.151304,1577.5,1577.4,5.96518]
[1745169977602,7.151304,1577.5,1577.4,14.17298]
[1745169981904,7.151304,1577.5,1577.4,20.05698]
[1745169983509,0.00949638,1577.5,1577.4,20.05698]
[1745169985006,0.00949638,1577.5,1577.4,15.05698]
[1745169991808,0.00949638,1577.5,1577.4,11.84918]
[1745169992007,0.00949638,1577.5,1577.4,15.05698]
[1745170000206,1.62529638,1577.5,1577.4,14.20248]
[1745170000405,2.89309638,1577.5,1577.4,12.58768]
[1745170001414,1.62529638,1577.5,1577.4,12.58768]
[1745170002808,2.89309638,1577.5,1577.4,12.58768]
[1745170003015,2.89309638,1577.5,1577.4,11.3198]
[1745170004014,2.89309638,1577.5,1577.4,12.58768]
[1745170005314,2.89309638,1577.5,1577.4,11.3198]
[1745170005516,2.89309638,1577.5,1577.4,6.70368]
[1745170006316,2.89309638,1577.5,1577.4,5.4358]
[1745170007718,2.89309638,1577.5,1577.4,2.228]
[1745170016422,7.89309638,1577.5,1577.4,2.228]
[1745170017310,9.89309638,1577.5,1577.4,2.228]
[1745170021313,17.03492531,1577.5,1577.4,2.228]
[1745170021631,10.03492531,1577.5,1577.4,2.228]
[1745170025141,10.03492531,1577.5,1577.4,3.9689]
[1745170026236,10.03492531,1577.5,1577.4,4.8089]
[1745170029944,7.92895651,1577.5,1577.4,4.8089]
[1745170030446,6.31315651,1577.5,1577.4,4.8089]
[1745170034249,5.50468748,1577.5,1577.4,4.8089]
[1745170037047,8.02218748,1577.5,1577.4,4.8089]
[1745170039453,5.50468748,1577.5,1577.4,4.8089]
[1745170045355,6.31309921,1577.5,1577.4,3.9689]
[1745170045548,8.83519921,1577.5,1577.4,3.9689]
[1745170048954,8.83519921,1577.5,1577.4,2.228]
[1745170049256,10.94116801,1577.5,1577.4,2.228]
[1745170052965,13.06080363,1577.5,1577.4,2.228]
[1745170061772,15.06080363,1577.5,1577.4,2.228]
[1745170065170,1.26796,1577.3,1577.2,2.228]
[1745170065471,4.47576,1577.3,1577.2,2.228]
[1745170065972,6.99426,1577.3,1577.2,2.228]
[1745170066371,8.99426,1577.3,1577.2,2.228]
[1745170067170,1.26836,1576.8,1576.7,8.47678211]
[1745170067368,1.26836,1576.8,1576.7,11.85358211]
[1745170068367,1.26836,1576.8,1576.7,14.08158211]
[1745170069569,3.02686,1576.8,1576.7,14.08158211]
[1745170069769,3.86946,1576.8,1576.7,14.08158211]
[1745170071376,1.26836,1576.8,1576.7,14.08158211]
[1745170072372,3.2078,1576.9,1576.7,14.08158211]
[1745170072674,4.47614,1576.9,1576.8,1.7509]
[1745170074778,1.26818,1577.1,1576.8,10.7739]
[1745170074978,1.26818,1577.1,1576.9,1.26828]
[1745170075178,1.26818,1577.1,1577.0,0.887]
[1745170075379,1.26818,1577.1,1577.0,1.6969]
[1745170075580,1.26818,1577.1,1577.0,3.3763]
[1745170076178,1.26818,1577.1,1577.0,5.6043]
[1745170077382,11.82568562,1577.1,1577.0,5.6043]
[1745170081583,1.26818,1577.1,1577.0,5.6043]
[1745170096296,1.26818,1577.1,1577.0,6.8725]
[1745170096496,1.26818,1577.1,1577.0,5.6043]
[1745170096993,5.48730451,1577.1,1577.0,5.6043]
[1745170097305,5.48730451,1577.1,1577.0,6.8725]
[1745170097596,5.48730451,1577.1,1577.0,5.6043]
[1745170099091,5.48730451,1577.1,1577.0,6.8725]
[1745170099289,5.48730451,1577.1,1577.0,5.6043]
[1745170099489,5.48724451,1577.1,1577.0,5.6043]
[1745170099690,4.21912451,1577.1,1577.0,6.8725]
[1745170101193,5.48724451,1577.1,1577.0,5.6043]
[1745170102097,5.48724451,1577.1,1577.0,6.8725]
[1745170102297,5.48724451,1577.1,1577.0,5.6043]
[1745170102489,5.48724451,1577.1,1577.0,6.8725]
[1745170102999,4.21912451,1577.1,1577.0,11.8725]
[1745170103298,4.21912451,1577.1,1577.0,15.0803]
[1745170106103,4.21912451,1577.1,1577.0,10.0803]
[1745170107905,3.04644,1577.2,1577.1,1.26812]
[1745170108099,3.04644,1577.2,1577.1,7.07382]
[1745170110001,3.04644,1577.2,1577.1,5.29012]
[1745170110294,3.88074,1577.2,1577.1,4.022]
[1745170112195,3.88074,1577.2,1577.1,5.29012]
[1745170116610,3.88074,1577.2,1577.1,6.92602]
[1745170117812,3.88074,1577.2,1577.1,5.6579]
[1745170118008,3.88074,1577.2,1577.1,6.92602]
[1745170118205,3.88074,1577.2,1577.1,4.022]
[1745170118816,3.88074,1577.2,1577.1,5.29012]
[1745170120311,4.21912451,1577.3,1577.2,1.26804]
[1745170120621,4.21912451,1577.3,1577.2,3.91204]
[1745170120811,5.48708451,1577.3,1577.2,3.91204]
[1745170121006,7.15408451,1577.3,1577.2,3.91204]
[1745170121313,7.15408451,1577.3,1577.2,3.9845]
[1745170121514,7.15408451,1577.3,1577.2,5.25254]
[1745170123020,2.93496,1577.3,1577.2,5.25254]
[1745170123721,1.667,1577.3,1577.2,5.25254]
[1745170124028,2.93496,1577.3,1577.2,5.25254]
[1745170124323,1.667,1577.3,1577.2,5.25254]
[1745170126126,2.93496,1577.3,1577.2,5.25254]
[1745170129828,3.76846,1577.3,1577.2,5.25254]
[1745170133828,3.76846,1577.3,1577.2,3.9845]
[1745170134035,3.76846,1577.3,1577.2,5.25254]
[1745170134238,3.76846,1577.3,1577.2,3.9845]
[1745170141944,8.79608098,1577.3,1577.2,3.9845]
[1745170142943,8.79608098,1577.3,1577.2,2.228]
[1745170145035,12.00388098,1577.3,1577.2,2.228]
[1745170145235,12.00388098,1577.3,1577.2,3.9121]
[1745170146344,14.11344324,1577.3,1577.2,3.9121]
[1745170149048,10.90564324,1577.3,1577.2,3.9121]
[1745170153245,14.11344324,1577.3,1577.2,3.9121]
[1745170157750,10.90564324,1577.3,1577.2,3.9121]
[1745170158855,4.57695647,1577.3,1577.2,3.9121]
[1745170161461,3.74345647,1577.3,1577.2,5.18014]
[1745170161660,3.74345647,1577.3,1577.2,3.9121]
[1745170162964,4.56925647,1577.3,1577.2,3.9121]
[1745170163460,4.56925647,1577.3,1577.2,2.228]
[1745170166258,13.0075055,1577.3,1577.2,2.228]
[1745170183985,13.0075055,1577.3,1577.2,3.9802]
[1745170191484,13.0075055,1577.3,1577.2,5.24824]
[1745170191685,13.0075055,1577.3,1577.2,3.9802]
[1745170191886,13.0075055,1577.3,1577.2,5.24824]
[1745170192086,12.1817055,1577.3,1577.2,5.24824]
[1745170192587,12.1817055,1577.3,1577.2,3.9802]
[1745170194191,12.1817055,1577.3,1577.2,5.24824]
[1745170194502,12.1817055,1577.3,1577.2,10.24824]
[1745170194503,9.2467455,1577.3,1577.2,10.24824]
[1745170194689,9.2467455,1577.3,1577.2,13.45604]
[1745170194690,0.1036855,1577.3,1577.2,13.45604]
[1745170194890,18.80260832,1577.4,1577.3,1.26796]
[1745170195094,18.80260832,1577.4,1577.3,6.92076]
[1745170195295,18.80260832,1577.4,1577.3,11.92076]
[1745170197701,0.00949638,1577.5,1577.4,1.26788]
[1745170198001,0.00949638,1577.5,1577.4,7.04248]
[1745170198201,0.00949638,1577.5,1577.4,15.09088]
[1745170199105,0.00949638,1577.5,1577.4,20.97488]
[1745170201103,0.00949638,1577.5,1577.4,15.97488]
[1745170206708,0.00949638,1577.5,1577.4,12.76708]
[1745170207009,0.00949638,1577.5,1577.4,15.97488]
[1745170208005,0.00949638,1577.5,1577.4,12.76708]
[1745170208205,0.00949638,1577.5,1577.4,15.97488]
[1745170208708,0.00949638,1577.5,1577.4,12.76708]
[1745170209011,0.00949638,1577.5,1577.4,15.97488]
[1745170215520,0.00949638,1577.5,1577.4,16.60668]
[1745170215818,1.27729638,1577.5,1577.4,16.60668]
[1745170216013,2.88419638,1577.5,1577.4,16.60668]
[1745170216619,2.88419638,1577.5,1577.4,10.72268]
[1745170216912,1.61639638,1577.5,1577.4,10.72268]
[1745170217619,1.61639638,1577.5,1577.4,11.54788]
[1745170218422,0.00949638,1577.5,1577.4,12.37128]
[1745170222422,0.00949638,1577.5,1577.4,18.25528]
[1745170226325,6.38e-06,1577.5,1577.4,23.25528]
[1745170229520,6.78477253,1578.0,1577.9,1.26748]
[1745170229720,6.78477253,1578.0,1577.9,5.28648]
[1745170230120,6.78477253,1578.0,1577.9,10.02128]
[1745170231028,8.05217253,1578.0,1577.9,6.247]
[1745170231237,6.78477253,1578.0,1577.9,7.51448]
[1745170231530,8.05217253,1578.0,1577.9,7.51448]
[1745170231834,6.78477253,1578.0,1577.9,7.51448]
[1745170232130,8.05217253,1578.0,1577.9,7.51448]
[1745170232634,2.5493,1578.0,1577.9,7.51448]
[1745170232824,3.8167,1578.0,1577.9,7.51448]
[1745170233225,2.5493,1578.0,1577.9,7.51448]
[1745170238633,2.5493,1578.0,1577.9,9.11998]
[1745170240136,2.5493,1578.0,1577.9,12.32778]
[1745170254947,1.6857,1578.0,1577.9,12.32778]
[1745170256538,1.6515,1578.1,1578.0,1.2674]
[1745170256739,3.3401,1578.1,1578.0,3.7969]
[1745170257242,3.3401,1578.1,1578.0,6.0249]
[1745170263851,3.3401,1578.1,1578.0,6.8288]
[1745170273555,4.60742,1578.1,1578.0,6.8288]
[1745170273738,9.60742,1578.1,1578.0,2.228]
[1745170274344,10.58868133,1578.2,1578.1,1.26732]
[1745170274552,13.46356133,1578.2,1578.0,5.25003]
[1745170274739,14.76061802,1578.1,1578.0,5.25003]
[1745170279751,16.02793802,1578.1,1578.0,3.49533]
[1745170281055,16.02793802,1578.1,1578.0,2.228]
[1745170281957,21.02793802,1578.1,1578.0,2.228]
[1745170282156,1.2674,1578.0,1577.9,0.00949638]
[1745170282455,1.26756,1577.8,1577.7,12.49378211]
[1745170283051,6.26756,1577.8,1577.7,14.72178211]
[1745170283553,8.70426,1577.8,1577.7,14.72178211]
[1745170285657,2.4367,1577.8,1577.7,15.98942211]
[1745170285856,0.8836,1577.9,1577.8,1.26756]
[1745170286052,2.5178,1578.0,1577.9,1.26748]
[1745170286249,2.5178,1578.0,1577.9,2.13708]
[1745170286448,10.94441782,1578.0,1577.9,3.78768]
[1745170286651,8.42661782,1578.0,1577.9,3.78768]
[1745170286857,8.42661782,1578.0,1577.9,6.99548]
[1745170287356,8.42661782,1578.0,1577.9,9.22348]
[1745170288553,10.16641782,1578.0,1577.9,9.22348]
[1745170290658,1.7398,1578.0,1577.9,9.22348]
[1745170290858,2.5584,1578.0,1577.9,9.22348]
[1745170292762,2.5584,1578.0,1577.9,6.01568]
[1745170293263,3.8258,1578.0,1577.9,6.01568]
[1745170294763,2.5584,1578.0,1577.9,6.01568]
[1745170295364,3.8258,1578.0,1577.9,10.03268]
[1745170296062,2.5584,1578.0,1577.9,10.03268]
[1745170297866,3.8258,1578.0,1577.9,10.03268]
[1745170298067,2.5584,1578.0,1577.9,10.03268]
[1745170299570,3.8258,1578.0,1577.9,10.03268]
[1745170299769,2.5584,1578.0,1577.9,10.03268]
[1745170300269,3.8258,1578.0,1577.9,10.03268]
[1745170300671,3.8258,1578.0,1577.9,7.8956]
[1745170301171,3.8258,1578.0,1577.9,9.16308]
[1745170301372,3.8258,1578.0,1577.9,7.8956]
[1745170303085,3.8258,1578.0,1577.9,9.16308]
[1745170306493,2.5584,1578.0,1577.9,9.16308]
[1745170309085,3.8258,1578.0,1577.9,9.16308]
[1745170309992,2.5584,1578.0,1577.9,9.16308]
[1745170311089,3.8258,1578.0,1577.9,9.16308]
[1745170311690,3.8258,1578.0,1577.9,7.8956]
[1745170311884,3.8258,1578.0,1577.9,9.16308]
[1745170312581,2.5584,1578.0,1577.9,9.16308]
[1745170314692,6.35585484,1578.1,1578.0,1.2674]
[1745170314887,6.35585484,1578.1,1578.0,4.7552]
[1745170315091,6.35585484,1578.1,1578.0,6.9832]
[1745170316492,8.04815484,1578.1,1578.0,6.9832]
[1745170319398,8.04815484,1578.1,1578.0,11.0002]
[1745170320396,8.04815484,1578.1,1578.0,6.245]